fUST/lending_fUST_20240601
["ID","MTS","AMOUNT","RATE_DAILY","PERIOD"]
[328337693,1717186246641,-151.0,0.00025,2]
[328337694,1717186246656,-158.89909,0.00025,2]
[328337695,1717186246671,-151.0,0.00025,2]
[328337696,1717186246686,-151.0,0.00025,2]
[328337697,1717186246700,-151.0,0.00025,2]
[328337698,1717186246715,-151.0,0.00025,2]
[328337699,1717186246730,-151.0,0.00025,2]
[328337700,1717186246744,-151.0,0.00025,2]
[328337702,1717186246759,-151.0,0.00025,2]
[328337705,1717186246774,-151.0,0.00025,2]
[328337707,1717186246788,-151.0,0.00025,2]
[328337710,1717186246802,-151.0,0.00025,2]
[328337712,1717186246816,-151.0,0.00025,2]
[328337713,1717186246831,-151.0,0.00025,2]
[328337714,1717186246845,-151.0,0.00025,2]
[328337715,1717186246860,-151.0,0.00025,2]
[328337718,1717186246874,-151.0,0.00025,2]
[328337720,1717186246888,-151.0,0.00025,2]
[328337722,1717186246902,-151.0,0.00025,2]
[328337723,1717186246917,-319.207954,0.00025,2]
[328337724,1717186246932,-319.207954,0.00025,2]
[328337725,1717186246948,-319.207954,0.00025,2]
[328337726,1717186246963,-319.207954,0.00025,2]
[328337727,1717186246979,-319.207954,0.00025,2]
[328337728,1717186246993,-319.207954,0.00025,2]
[328337729,1717186247012,-319.207954,0.00025,2]
[328337730,1717186247027,-319.207954,0.00025,2]
[328337731,1717186247041,-248.964113,0.00025,2]
[328337732,1717186247157,-248.964113,0.00025,2]
[328337733,1717186247173,-248.964113,0.00025,2]
[328337734,1717186247182,-248.964113,0.00025,2]
[328337735,1717186247191,-248.964113,0.00025,2]
[328337736,1717186247201,-248.964113,0.00025,2]
[328337737,1717186247210,-248.964113,0.00025,2]
[328337738,1717186247218,-248.964113,0.00025,2]
[328337739,1717186247228,-943.740646,0.00025,2]
[328337740,1717186247238,-943.740646,0.00025,2]
[328337741,1717186247247,-943.740646,0.00025,2]
[328337742,1717186247256,-943.740646,0.00025,2]
[328337743,1717186247265,-943.740646,0.00025,2]
[328337744,1717186247274,-943.740646,0.00025,2]
[328337745,1717186247283,-943.740646,0.00025,2]
[328337746,1717186247292,-943.740641,0.00025,2]
[328337747,1717186247301,-218.896398,0.00025,2]
[328337748,1717186247310,-218.896398,0.00025,2]
[328337749,1717186247319,-218.896398,0.00025,2]
[328337750,1717186247328,-218.896398,0.00025,2]
[328337751,1717186247337,-218.896398,0.00025,2]
[328337752,1717186247346,-218.896398,0.00025,2]
[328337753,1717186247355,-218.896398,0.00025,2]
[328337754,1717186247364,-218.896393,0.00025,2]
[328337755,1717186247373,-396.808827,0.00025,2]
[328337756,1717186247382,-396.808827,0.00025,2]
[328337757,1717186247391,-396.808827,0.00025,2]
[328337758,1717186247400,-396.808827,0.00025,2]
[328337759,1717186247409,-396.808827,0.00025,2]
[328337760,1717186247418,-396.808827,0.00025,2]
[328337761,1717186247427,-396.808827,0.00025,2]
[328337762,1717186247436,-396.808833,0.00025,2]
[328337763,1717186247445,-553.286267,0.00025,2]
[328337764,1717186247454,-553.286267,0.00025,2]
[328337765,1717186247463,-553.286267,0.00025,2]
[328337766,1717186247473,-553.286267,0.00025,2]
[328337767,1717186247483,-553.286267,0.00025,2]
[328337768,1717186247493,-553.286267,0.00025,2]
[328337769,1717186247502,-553.286267,0.00025,2]
[328337770,1717186247511,-553.286271,0.00025,2]
[328337771,1717186247520,-408.308941,0.00025,2]
[328337772,1717186247529,-408.308941,0.00025,2]
[328337773,1717186247538,-408.308941,0.00025,2]
[328337774,1717186247547,-408.308941,0.00025,2]
[328337775,1717186247556,-408.308941,0.00025,2]
[328337776,1717186247565,-408.308941,0.00025,2]
[328337777,1717186247574,-408.308941,0.00025,2]
[328337778,1717186247584,-408.308933,0.00025,2]
[328337779,1717186247593,-498.509372,0.00025,2]
[328337780,1717186247603,-498.509372,0.00025,2]
[328337781,1717186247612,-498.509372,0.00025,2]
[328337782,1717186247622,-498.509372,0.00025,2]
[328337783,1717186247631,-498.509372,0.00025,2]
[328337784,1717186247641,-498.509372,0.00025,2]
[328337785,1717186247650,-498.509372,0.00025,2]
[328337786,1717186247659,-498.509372,0.00025,2]
[328337787,1717186247668,-2024.307272,0.00025,2]
[328337788,1717186247677,-2024.307272,0.00025,2]
[328337789,1717186247686,-2024.307272,0.00025,2]
[328337790,1717186247695,-2024.307281,0.00025,2]
[328337791,1717186247705,-1639.341704,0.00025,2]
[328337792,1717186247715,-1639.341704,0.00025,2]
[328337793,1717186247724,-1639.341704,0.00025,2]
[328337794,1717186247734,-1639.341704,0.00025,2]
[328337795,1717186247744,-1639.341704,0.00025,2]
[328337796,1717186247754,-1639.34171125,0.00025,2]
[328337797,1717186247763,-151.0,0.00025,7]
[328337798,1717186247773,-151.0,0.00025,7]
[328337799,1717186247782,-151.0,0.00025624,2]
[328337800,1717186247791,-151.0,0.00025624,2]
[328337801,1717186247801,-2205.96,0.00025624,2]
[328337802,1717186247811,-151.00151002,0.000259,2]
[328337803,1717186247820,-2500.0,0.00026,2]
[328337804,1717186247829,-160.845904,0.00026,2]
[328337805,1717186247838,-246.16509,0.00026,2]
[328337806,1717186247848,-151.0,0.00026,2]
[328337807,1717186247857,-319.207954,0.00026,2]
[328337808,1717186247867,-319.207957,0.00026,2]
[328337809,1717186247876,-248.964113,0.00026,2]
[328337810,1717186247886,-248.964115,0.00026,2]
[328337811,1717186247895,-277.586163,0.00026027,2]
[328337812,1717186247904,-1621.043132,0.000263,2]
[328337813,1717186247913,-2205.96,0.00026358,2]
[328337814,1717186247923,-9632.91416239,0.00026359,11]
[328337815,1717186247933,-5000.0,0.00026359,11]
[328337816,1717186247942,-151.0,0.00026359,2]
[328337817,1717186247951,-151.0,0.00026359,2]
[328337818,1717186247960,-151.0,0.00026359,2]
[328337819,1717186247970,-2501.4687184,0.0002641,2]
[328337820,1717186247979,-174.848723,0.0002645,2]
[328337821,1717186247988,-151.0,0.0002645,2]
[328337822,1717186247998,-151.0,0.0002645,2]
[328337823,1717186248012,-153.0,0.00026462,2]
[328337824,1717186248022,-153.0,0.00026462,2]
[328337825,1717186248031,-153.0,0.00026462,2]
[328337826,1717186248042,-153.0,0.00026462,2]
[328337827,1717186248052,-153.0,0.00026462,2]
[328337828,1717186248061,-153.0,0.00026462,2]
[328337829,1717186248070,-3000.0,0.000265,2]
[328337830,1717186248081,-2205.96,0.00026509,2]
[328337831,1717186248091,-3000.0,0.0002651,2]
[328337832,1717186248101,-3000.0,0.0002652,2]
[328337833,1717186248110,-3000.0,0.0002653,2]
[328337834,1717186248119,-3000.0,0.0002654,2]
[328337835,1717186248128,-3000.0,0.0002655,2]
[328337836,1717186248138,-3000.0,0.0002656,2]
[328337837,1717186248147,-3000.0,0.0002657,2]
[328337838,1717186248156,-2205.96,0.00026579,2]
[328337839,1717186248165,-3000.0,0.0002658,2]
[328337840,1717186248175,-3000.0,0.0002659,2]
[328337841,1717186248185,-3000.0,0.000266,2]
[328337842,1717186248194,-3000.0,0.0002661,2]
[328337843,1717186248204,-3000.0,0.0002662,2]
[328337844,1717186248213,-3000.0,0.0002663,2]
[328337845,1717186248223,-3000.0,0.0002664,2]
[328337846,1717186248233,-3000.0,0.0002665,2]
[328337847,1717186248242,-2205.96,0.00026659,2]
[328337848,1717186248251,-3000.0,0.0002666,2]
[328337849,1717186248261,-3000.0,0.0002667,2]
[328337850,1717186248271,-3000.0,0.0002668,2]
[328337851,1717186248280,-3000.0,0.0002669,2]
[328337852,1717186248290,-3000.0,0.000267,2]
[328337853,1717186248299,-3000.0,0.0002671,2]
[328337854,1717186248308,-3000.0,0.0002672,2]
[328337855,1717186248318,-3000.0,0.0002673,2]
[328337856,1717186248327,-5687.01362823,0.00026734,10]
[328337857,1717186248336,-2205.96,0.00026739,2]
[328337858,1717186248346,-3000.0,0.0002674,2]
[328337859,1717186248355,-3000.0,0.0002675,2]
[328337860,1717186248364,-3000.0,0.0002676,2]
[328337861,1717186248374,-3000.0,0.0002677,2]
[328337862,1717186248383,-3000.0,0.0002678,2]
[328337863,1717186248392,-3000.0,0.0002679,2]
[328337864,1717186248402,-2205.96,0.00026799,2]
[328337865,1717186248411,-2205.96,0.00026799,2]
[328337866,1717186248421,-2205.96,0.00026799,2]
[328337867,1717186248430,-2205.96,0.00026799,2]
[328337868,1717186248439,-2205.96,0.00026799,2]
[328337869,1717186248449,-2205.96,0.00026799,2]
[328337870,1717186248458,-2205.96,0.00026799,2]
[328337871,1717186248468,-2205.96,0.00026799,2]
[328337872,1717186248477,-2206.17,0.00026799,2]
[328337873,1717186248487,-170876.5735458,0.000268,2]
[328337874,1717186248496,-71187.50404944,0.000268,2]
[328337875,1717186248506,-3000.0,0.000268,2]
[328337876,1717186248516,-1147.31,0.000268,3]
[328337877,1717186248525,-1147.31,0.000268,3]
[328337878,1717186248535,-1147.31,0.000268,3]
[328337879,1717186248546,-1147.31,0.000268,3]
[328337880,1717186248555,-1147.31,0.000268,3]
[328337881,1717186248565,-1147.31,0.000268,3]
[328337882,1717186248574,-1147.31,0.000268,3]
[328337883,1717186248664,-1147.31,0.000268,3]
[328337884,1717186248674,-1147.31,0.000268,3]
[328337885,1717186248684,-1147.31,0.000268,3]
[328337886,1717186248693,-1147.31,0.000268,3]
[328337887,1717186248704,-1147.31,0.000268,3]
[328337888,1717186248714,-1147.31,0.000268,3]
[328337889,1717186248725,-1147.31,0.000268,3]
[328337890,1717186248736,-1147.31,0.000268,3]
[328337891,1717186248745,-1147.31,0.000268,3]
[328337892,1717186248755,-1147.31,0.000268,3]
[328337893,1717186248765,-1147.31,0.000268,3]
[328337894,1717186248774,-1147.31,0.000268,3]
[328337895,1717186248783,-1147.31,0.000268,3]
[328337896,1717186248793,-712.0,0.000268,2]
[328337897,1717186248803,-1000.0,0.000268,2]
[328337898,1717186248812,-3000.0,0.0002681,2]
[328337899,1717186248822,-3000.0,0.0002682,2]
[328337900,1717186248832,-3000.0,0.0002683,2]
[328337901,1717186248841,-3000.0,0.0002684,2]
[328337902,1717186248850,-160.43975,0.00026849,2]
[328337903,1717186248860,-597.582237,0.00026849,2]
[328337904,1717186248869,-3000.0,0.0002685,2]
[328337905,1717186248879,-3000.0,0.0002686,2]
[328337906,1717186248888,-3000.0,0.0002687,2]
[328337907,1717186248898,-3000.0,0.0002688,2]
[328337908,1717186248907,-3000.0,0.0002689,2]
[328337909,1717186248917,-63286.69206455,0.000269,2]
[328337910,1717186248926,-297.69895864,0.000269,2]
[328337911,1717186249293,-202.30104136,0.000269,2]
[328337912,1717186249302,-338.0,0.000269,2]
[328337913,1717186249311,-3000.0,0.000269,2]
[328337914,1717186249320,-3000.0,0.0002691,2]
[328337915,1717186249330,-3000.0,0.0002692,2]
[328337916,1717186249339,-3000.0,0.0002693,2]
[328337917,1717186249348,-1000.0,0.00026936,2]
[328337918,1717186249357,-3000.0,0.0002694,2]
[328337919,1717186249366,-3000.0,0.0002695,2]
[328337920,1717186249375,-1000.0,0.00026954,2]
[328337921,1717186249383,-10000.0,0.00026955,2]
[328337922,1717186249393,-5516.952765,0.0002696,2]
[328337923,1717186249402,-1000.0,0.00026967,2]
[328337924,1717186249411,-1000.0,0.00026979,2]
[328337925,1717186249420,-12905.0816513,0.00027,5]
[328337926,1717186249429,-1000.0,0.00027001,2]
[328337927,1717186249439,-1000.0,0.0002702,2]
[328337928,1717186249448,-1000.0,0.00027029,2]
[328337929,1717186249457,-1000.0,0.00027048,2]
[328337930,1717186249466,-1000.0,0.00027057,2]
[328337931,1717186249475,-1000.0,0.00027063,2]
[328337932,1717186249486,-1000.0,0.00027068,2]
[328337933,1717186249494,-1000.0,0.00027086,2]
[328337934,1717186249503,-5000.0,0.00027093,13]
[328337935,1717186249512,-5000.0,0.00027093,10]
[328337936,1717186249522,-5000.0,0.00027093,9]
[328337937,1717186249531,-1000.0,0.00027111,2]
[328337938,1717186249540,-1000.0,0.00027112,2]
[328337939,1717186249549,-1000.0,0.00027128,2]
[328337940,1717186249558,-1000.0,0.00027129,2]
[328337941,1717186249567,-1000.0,0.00027133,2]
[328337942,1717186249576,-1000.0,0.00027144,2]
[328337943,1717186249586,-1000.0,0.00027145,2]
[328337944,1717186249595,-1000.0,0.00027177,2]
[328337945,1717186249604,-577.05579965,0.0002718,2]
[328337946,1717186249614,-1000.0,0.00027191,2]
[328337947,1717186249623,-1000.0,0.00027198,2]
[328337948,1717186249632,-300.95262918,0.00027218,2]
[328337949,1717186249642,-1000.0,0.00027222,2]
[328337950,1717186249652,-153.0,0.00027284,2]
[328337951,1717186249662,-153.0,0.00027284,2]
[328337952,1717186249671,-153.0,0.00027284,2]
[328337953,1717186249680,-153.0,0.00027284,2]
[328337954,1717186249689,-153.0,0.00027284,2]
[328337955,1717186249698,-300.0,0.000273,13]
[328337956,1717186249707,-1000.0,0.000273,2]
[328337957,1717186249717,-457.01771666,0.00027315,2]
[328337958,1717186249726,-1462.16827805,0.00027315,2]
[328337959,1717186249736,-500.0,0.00027397,2]
[328337960,1717186249745,-500.0,0.00027397,2]
[328337961,1717186249754,-563.44817646,0.00027397,2]
[328337962,1717186249764,-430.77069819,0.00027397,2]
[328337963,1717186249773,-500.0,0.00027397,2]
[328337964,1717186249782,-500.0,0.00027397,2]
[328337965,1717186249791,-500.0,0.00027397,2]
[328337966,1717186249800,-424.20714512,0.00027397,2]
[328337967,1717186249810,-500.0,0.00027397,2]
[328337968,1717186249819,-500.0,0.00027397,2]
[328337969,1717186249828,-500.0,0.00027397,2]
[328337970,1717186249837,-500.0,0.00027397,2]
[328337971,1717186249847,-151.0,0.00027397,2]
[328337972,1717186249856,-151.0,0.00027397,2]
[328337973,1717186249866,-151.0,0.00027397,2]
[328337974,1717186249875,-151.0,0.00027397,2]
[328337975,1717186249884,-151.0,0.00027397,2]
[328337976,1717186249894,-151.0,0.00027397,2]
[328337977,1717186249903,-151.0,0.00027397,2]
[328337978,1717186249912,-151.0,0.00027397,2]
[328337979,1717186249922,-151.0,0.00027397,2]
[328337980,1717186249931,-151.0,0.00027397,2]
[328337981,1717186249940,-151.0,0.00027397,2]
[328337982,1717186249949,-174.411589,0.00027397,2]
[328337983,1717186249959,-1732.817382,0.00027397,2]
[328337984,1717186249967,-1732.817382,0.00027397,2]
[328337985,1717186249977,-1732.817382,0.00027397,2]
[328337986,1717186249986,-1732.817382,0.00027397,2]
[328337987,1717186250083,-1732.817382,0.00027397,2]
[328337988,1717186250093,-1732.817382,0.00027397,2]
[328337989,1717186250103,-1732.817382,0.00027397,2]
[328337990,1717186250112,-1732.817382,0.00027397,2]
[328337991,1717186250121,-1732.817382,0.00027397,2]
[328337992,1717186250130,-1732.817382,0.00027397,2]
[328337993,1717186250139,-1732.817382,0.00027397,2]
[328337994,1717186250148,-1732.817382,0.00027397,2]
[328337995,1717186250158,-1732.817382,0.00027397,2]
[328337996,1717186250167,-1732.817382,0.00027397,2]
[328337997,1717186250176,-1732.817382,0.00027397,2]
[328337998,1717186250185,-1732.817382,0.00027397,2]
[328337999,1717186250194,-1732.817382,0.00027397,2]
[328338000,1717186250204,-1732.817382,0.00027397,2]
[328338001,1717186250213,-1732.817382,0.00027397,2]
[328338002,1717186250223,-1732.817392,0.00027397,2]
[328338003,1717186250234,-160.0,0.00027397,10]
[328338004,1717186250243,-162.36450739,0.00027397,10]
[328338005,1717186250253,-500.0,0.000275,2]
[328338006,1717186250263,-306.0,0.00027647,2]
[328338007,1717186250272,-153.0,0.00027647,2]
[328338008,1717186250281,-153.0,0.00027647,2]
[328338009,1717186250290,-306.0,0.00027647,2]
[328338010,1717186250300,-497.112,0.00027725,2]
[328338011,1717186250310,-2197.24879311,0.000279,2]
[328338012,1717186250320,-221.97996924,0.00028,2]
[328338013,1717186250329,-1000.0,0.00028,9]
[328338014,1717186250339,-259.0,0.00028,5]
[328338015,1717186250348,-1000.0,0.00028,2]
[328338016,1717186250358,-166.666666,0.00028,2]
[328338017,1717186250367,-800.0,0.00028,2]
[328338018,1717186250376,-7417.91190179,0.00028,20]
[328338019,1717186250386,-67679.85024586,0.00028484,4]
[328338022,1717186368694,155.00155002,9.999e-05,2]
[328338023,1717186383658,155.00155002,9.999e-05,2]
[328338024,1717186396397,155.00155002,9.999e-05,2]
[328338025,1717186403408,155.00155002,9.999e-05,2]
[328338032,1717187014652,149.08239758,9.999e-05,7]
[328338033,1717187014683,117.9573805,9.999e-05,7]
[328338051,1717187432453,-1136.47911416,0.000189,2]
[328338052,1717187432463,-155.00155002,0.0002188,2]
[328338053,1717187432472,-265.32126628,0.00021881,7]
[328338054,1717187432481,-7848.12540562,0.00021882,2]
[328338055,1717187432498,-5155.8,0.00021882,2]
[328338072,1717187438171,-11310.20749608,0.00021882,2]
[328338073,1717187438181,-166.666666,0.00021918,2]
[328338074,1717187438190,-166.666666,0.00022431,2]
[328338075,1717187438200,-22884.70084567,0.000225,2]
[328338076,1717187438209,-711.31387877,0.00022844,2]
[328338077,1717187438218,-166.666666,0.00022944,2]
[328338078,1717187438228,-155.00155002,0.00023,2]
[328338079,1717187438237,-194.13394804,0.00023,2]
[328338080,1717187438246,-166.666666,0.00023456,2]
[328338082,1717187438255,-1136.47911416,0.000239,2]
[328338084,1717187438265,-166.666666,0.00023969,2]
[328338086,1717187438274,-761.75049726,0.000244,2]
[328338088,1717187438283,-166.666666,0.00024482,2]
[328338090,1717187438293,-711.31387877,0.00024566,2]
[328338091,1717187438302,-2194.39954287,0.00024998,2]
[328338092,1717187438311,-379.14331368,0.00024999,2]
[328338093,1717187438320,-2116.16628334,0.00024999,2]
[328338094,1717187438330,-401.51088538,0.00025,2]
[328338095,1717187438349,-151.0,0.00025183,2]
[328338096,1717187438361,-155.32602104,0.00025891,2]
[328338097,1717187438375,-711.31387877,0.00026289,2]
[328338098,1717187438385,-750.0,0.00026849,2]
[328338099,1717187438549,-917.97,0.000269,3]
[328338100,1717187438559,-917.97,0.000269,3]
[328338101,1717187438569,-917.97,0.000269,3]
[328338102,1717187438578,-917.97,0.000269,3]
[328338103,1717187438587,-917.97,0.000269,3]
[328338104,1717187438597,-917.97,0.000269,3]
[328338105,1717187438606,-917.97,0.000269,3]
[328338106,1717187438615,-917.97,0.000269,3]
[328338107,1717187438624,-917.97,0.000269,3]
[328338108,1717187438633,-917.97,0.000269,3]
[328338109,1717187438643,-917.97,0.000269,3]
[328338110,1717187438652,-917.97,0.000269,3]
[328338111,1717187438661,-917.97,0.000269,3]
[328338112,1717187438670,-917.97,0.000269,3]
[328338113,1717187438680,-917.97,0.000269,3]
[328338114,1717187438689,-917.97,0.000269,3]
[328338115,1717187438699,-917.97,0.000269,3]
[328338116,1717187438707,-917.97,0.000269,3]
[328338117,1717187438717,-917.97,0.000269,3]
[328338118,1717187438726,-917.97,0.000269,3]
[328338119,1717187438735,-173.71646405,0.00027397,2]
[328338120,1717187438744,-500.0,0.000275,2]
[328338121,1717187438753,-1197.24879311,0.000279,2]
[328338122,1717187438762,-166.666666,0.00028,2]
[328338123,1717187438771,-221.97996924,0.00028,2]
[328338124,1717187438780,-151.0,0.00028,7]
[328338125,1717187438790,-711.31387877,0.00028011,2]
[328338126,1717187438799,-287.10566119,0.00028199,2]
[328338127,1717187438809,-160.0,0.000284,2]
[328338128,1717187438818,-60006.3011717,0.00028484,4]
[328338129,1717187438827,-2777.90295107,0.00028484,2]
[328338130,1717187438837,-224.83709056,0.00028484,2]
[328338131,1717187438846,-335.51344996,0.00028484,2]
[328338132,1717187438856,-761.78967286,0.00028484,2]
[328338133,1717187438865,-457.01771666,0.00028484,2]
[328338134,1717187438874,-282.0,0.000285,2]
[328338135,1717187438883,-300.2718996,0.00028666,2]
[328338136,1717187438893,-2217.86,0.00028689,3]
[328338137,1717187438902,-3193.72,0.0002869,3]
[328338138,1717187438911,-2661.43,0.0002869,3]
[328338139,1717187438920,-187.68591663,0.00028698,2]
[328338140,1717187438930,-496.57262593,0.00028698,2]
[328338141,1717187438939,-500.0,0.00028698,2]
[328338142,1717187438949,-500.0,0.00028698,2]
[328338143,1717187438958,-410.37339591,0.00028698,2]
[328338144,1717187438968,-449.14827741,0.00028698,2]
[328338145,1717187438977,-500.0,0.00028698,2]
[328338146,1717187438986,-500.0,0.00028698,2]
[328338147,1717187438996,-500.0,0.00028698,2]
[328338148,1717187439005,-517.47431917,0.00028698,2]
[328338149,1717187439015,-500.0,0.00028698,2]
[328338150,1717187439024,-177.26214354,0.00028698,2]
[328338151,1717187439034,-500.0,0.00028698,2]
[328338152,1717187439045,-500.0,0.00028698,2]
[328338153,1717187439055,-557.57166025,0.00028698,2]
[328338154,1717187439065,-11000.0,0.000287,2]
[328338155,1717187439074,-1848.22,0.00028748,3]
[328338156,1717187439083,-155.41332812,0.00028758,2]
[328338157,1717187439093,-304.47725592,0.00028758,2]
[328338158,1717187439103,-206.83403594,0.00028758,2]
[328338159,1717187439112,-200.86887651,0.00028758,2]
[328338160,1717187439122,-225.48496262,0.00028758,2]
[328338161,1717187439135,-163.34646369,0.00028758,2]
[328338162,1717187439144,-195.2589278,0.00028758,2]
[328338163,1717187439154,-214.84176779,0.00028758,2]
[328338164,1717187439163,-268.02961134,0.00028758,2]
[328338165,1717187439173,-190.8626778,0.00028758,2]
[328338166,1717187439182,-174.24283102,0.00028758,2]
[328338167,1717187439192,-308.26274171,0.00028758,2]
[328338168,1717187439202,-261.3239379,0.00028758,2]
[328338169,1717187439212,-155.13948484,0.00028758,2]
[328338170,1717187439221,-155.68564342,0.00028758,2]
[328338171,1717187439231,-200.0,0.00028758,2]
[328338172,1717187439241,-211.22315346,0.00028758,2]
[328338173,1717187439250,-192.45480649,0.00028758,7]
[328338174,1717187439260,-844.63439187,0.00028758,17]
[328338175,1717187439270,-240.93728755,0.00028766,2]
[328338176,1717187439280,-155.30102792,0.00028766,2]
[328338177,1717187439290,-204.6347685,0.00028766,2]
[328338178,1717187439299,-303.49696998,0.00028766,2]
[328338179,1717187439309,-256.10549686,0.00028766,2]
[328338180,1717187439319,-300.6449023,0.00028766,2]
[328338181,1717187439329,-173.01239976,0.00028766,2]
[328338182,1717187439339,-180.83579084,0.00028766,2]
[328338183,1717187439349,-303.5627649,0.00028767,2]
[328338184,1717187439359,-154.92253873,0.00028768,2]
[328338185,1717187439372,-1351.17833091,0.00028768,2]
[328338186,1717187439382,-1098.62540245,0.00028768,2]
[328338187,1717187439391,-155.27646197,0.00028768,2]
[328338188,1717187439401,-442.75883193,0.00028768,2]
[328338189,1717187439411,-2402.75654892,0.00028768,2]
[328338190,1717187439422,-223.35933546,0.00028768,2]
[328338191,1717187439431,-309.4692123,0.00028768,2]
[328338192,1717187439441,-295.47511277,0.00028768,2]
[328338193,1717187439453,-155.23305718,0.00028768,2]
[328338194,1717187439463,-189.00366596,0.00028768,2]
[328338195,1717187439473,-269.43312445,0.00028769,2]
[328338196,1717187439484,-721.20812959,0.00028769,2]
[328338197,1717187439496,-155.38635448,0.00028769,2]
[328338198,1717187439508,-761.5,0.00028769,2]
[328338199,1717187439518,-761.5,0.00028769,2]
[328338200,1717187439528,-761.5,0.00028769,2]
[328338201,1717187439538,-761.5,0.00028769,2]
[328338202,1717187439549,-761.5,0.00028769,2]
[328338203,1717187439560,-761.5,0.00028769,2]
[328338204,1717187439570,-761.5,0.00028769,2]
[328338205,1717187439581,-1275.70315435,0.0002877,7]
[328338206,1717187439597,-21586.31750322,0.0002877,7]
[328338207,1717187439607,-15256.4390274,0.0002877,2]
[328338208,1717187439629,-356.93879695,0.0002877,2]
[328338209,1717187439642,-1148.725005,0.0002877,2]
[328338210,1717187439654,-1089.4560012,0.0002877,2]
[328338211,1717187439665,-1080.23999965,0.0002877,2]
[328338212,1717187439678,-4009.55400131,0.0002877,2]
[328338281,1717187441413,-3018.03905673,0.0002877,2]
[328338282,1717187441425,-1094.18813609,0.0002877,2]
[328338283,1717187441436,-11340.20426387,0.0002877,2]
[328338284,1717187441541,-120388.72647741,0.0002877,2]
[328338285,1717187441554,-300.0,0.000288,14]
[328338286,1717187441563,-761.5,0.00028889,2]
[328338287,1717187441573,-761.5,0.00028889,2]
[328338288,1717187441582,-1136.47911416,0.000289,2]
[328338289,1717187441591,-761.5,0.00028989,2]
[328338290,1717187441600,-761.5,0.00028989,2]
[328338291,1717187441610,-761.5,0.00028989,2]
[328338292,1717187441619,-761.5,0.00028989,2]
[328338293,1717187441628,-761.5,0.00028989,2]
[328338294,1717187441638,-26578.55102469,0.0002899,2]
[328338295,1717187441650,-51307.96998142,0.0002899,2]
[328338316,1717187443389,-6055.77622207,0.0002899,2]
[328338317,1717187443454,-6047.41495336,0.0002899,2]
[328338318,1717187443513,-2888.51946541,0.0002899,2]
[328338361,1717188326135,371.96487364,9.999e-05,2]
[328338369,1717188417427,223.9187864,9.999e-05,2]
[328338404,1717188632441,-864.65523561,0.00018998,2]
[328338406,1717188632450,-3030.55347032,0.00019462,2]
[328338409,1717188632476,-3963.53909968,0.00019462,2]
[328338410,1717188632486,-529.26882942,0.00019998,2]
[328338411,1717188632497,-514.49757357,0.00019998,2]
[328338412,1717188632508,-925.7533166,0.00019999,2]
[328338413,1717188632651,-1161.43907926,0.0002,2]
[328338414,1717188632661,-34871.87886464,0.0002,2]
[328338415,1717188632672,-225.29365367,0.00020875,2]
[328338484,1717188638531,-1029.5663358,0.00020975,2]
[328338789,1717188641581,-608.09548811,0.00020975,2]
[328338791,1717188641592,-23252.33817609,0.00020975,2]
[328338793,1717188641603,-173.721763,0.00021918,2]
[328338795,1717188641612,-704.82971802,0.000225,2]
[328338823,1717188641873,-583.41310161,0.000225,2]
[328339028,1717188643597,-12104.50588508,0.000225,2]
[328339039,1717188643686,-1671.33730823,0.000225,2]